{"text_format":"1","workbook":"xlsx","n_sheets":3,"sheets":[" STOCKLIJST 2020","STOCKLIJST 2021","VERBRUIK 2021"],"not_rendered":{"charts":0,"images":0,"macros":1,"external_links":0,"defined_names":11,"comments":0,"pivot_tables":0},"unopened":[],"bounds":{"document_bytes":16777216,"sheet_cells":100000,"rows_first":2000,"rows_last":500,"rows_between":2000,"halvings":0,"cell_chars":16384,"cell_head_chars":4096},"cells_cut":0,"cells_raw":0,"read":"whole","date_system":"1900"}

{"sheet":" STOCKLIJST 2020","index":0,"n_rows":15,"n_cols":7,"rows_kept":15,"cut":false,"hidden":false,"merged":[]}
[null,"AANKOOP"]
[null,"TOTALE VOORRAADWAARDE:","VOORRAADARTIKELEN:","OPSLAGLOCATIE OPZOEKEN"]
[null,{"$f":"SUM(Voorraadlijst[VOORRAADWAARDE])","v":3456.8},{"$f":"COUNTA(Voorraadlijst[BESCHRIJVING])","v":11}]
[null,"ARTIKEL","BESCHRIJVING","EENHEID","HOEV","KOSTEN","VOORRAADWAARDE"]
[null,"EIKEN OP BOOL","EIKEN PLANKEN","Per stuk",20,30,{"$f":"Voorraadlijst[[#This Row],[HOEV]]*Voorraadlijst[[#This Row],[KOSTEN]]","v":600}]
[null,"SPAANPLAATSCHROEVEN","4 X 30","DOOS 200 STUKS",1,7.8,{"$f":"Voorraadlijst[[#This Row],[HOEV]]*Voorraadlijst[[#This Row],[KOSTEN]]","v":7.8}]
[null,"MK676554","4 x 40","Per stuk",10,5,{"$f":"Voorraadlijst[[#This Row],[HOEV]]*Voorraadlijst[[#This Row],[KOSTEN]]","v":50}]
[null,"YE98767","4 x 50","Doos (10 stuks)",40,15,{"$f":"Voorraadlijst[[#This Row],[HOEV]]*Voorraadlijst[[#This Row],[KOSTEN]]","v":600}]
[null,"XR23423","Artikel 5","Per stuk",12,26,{"$f":"Voorraadlijst[[#This Row],[HOEV]]*Voorraadlijst[[#This Row],[KOSTEN]]","v":312}]
[null,"PW98762","Artikel 6","Per stuk",7,50,{"$f":"Voorraadlijst[[#This Row],[HOEV]]*Voorraadlijst[[#This Row],[KOSTEN]]","v":350}]
[null,"BM87684","Artikel 7","Per stuk",10,10,{"$f":"Voorraadlijst[[#This Row],[HOEV]]*Voorraadlijst[[#This Row],[KOSTEN]]","v":100}]
[null,"BH67655","Artikel 8","Per stuk",19,3,{"$f":"Voorraadlijst[[#This Row],[HOEV]]*Voorraadlijst[[#This Row],[KOSTEN]]","v":57}]
[null,"WT98768","Artikel 9","Pakket (5 stuks)",20,14,{"$f":"Voorraadlijst[[#This Row],[HOEV]]*Voorraadlijst[[#This Row],[KOSTEN]]","v":280}]
[null,"TS3456","Artikel 10","Per stuk",15,60,{"$f":"Voorraadlijst[[#This Row],[HOEV]]*Voorraadlijst[[#This Row],[KOSTEN]]","v":900}]
[null,"WDG123","Artikel 11","Per stuk",25,8,{"$f":"Voorraadlijst[[#This Row],[HOEV]]*Voorraadlijst[[#This Row],[KOSTEN]]","v":200}]

{"sheet":"STOCKLIJST 2021","index":1,"n_rows":15,"n_cols":7,"rows_kept":15,"cut":false,"hidden":false,"merged":[]}
[null,"STOCKLIJST"]
[null,"TOTALE VOORRAADWAARDE:","VOORRAADARTIKELEN:","OPSLAGLOCATIE OPZOEKEN"]
[null,{"$f":"SUM(Voorraadlijst3[VOORRAADWAARDE])","v":3108.37},{"$f":"COUNTA(Voorraadlijst3[BESCHRIJVING])","v":11}]
[null,"ARTIKEL","BESCHRIJVING","EENHEID","HOEV","KOSTEN","VOORRAADWAARDE"]
[null,"EIK OP BOOL","EIKEN PLANKEN","Per stuk",20,30,{"$f":"Voorraadlijst3[[#This Row],[HOEV]]*Voorraadlijst3[[#This Row],[KOSTEN]]","v":600}]
[null,"Finixia schuurschijven","150MM p80","DOOS 100ST",3,27.79,{"$f":"Voorraadlijst3[[#This Row],[HOEV]]*Voorraadlijst3[[#This Row],[KOSTEN]]","v":83.37}]
[null,"WDG456","Artikel 3","Per stuk",10,5,{"$f":"Voorraadlijst3[[#This Row],[HOEV]]*Voorraadlijst3[[#This Row],[KOSTEN]]","v":50}]
[null,"YE98767","Artikel 4","Doos (10 stuks)",40,15,{"$f":"Voorraadlijst3[[#This Row],[HOEV]]*Voorraadlijst3[[#This Row],[KOSTEN]]","v":600}]
[null,"XR23423","Artikel 5","Per stuk",3,26,{"$f":"Voorraadlijst3[[#This Row],[HOEV]]*Voorraadlijst3[[#This Row],[KOSTEN]]","v":78}]
[null,"PW98762","Artikel 6","Per stuk",4,50,{"$f":"Voorraadlijst3[[#This Row],[HOEV]]*Voorraadlijst3[[#This Row],[KOSTEN]]","v":200}]
[null,"BM87684","Artikel 7","Per stuk",10,10,{"$f":"Voorraadlijst3[[#This Row],[HOEV]]*Voorraadlijst3[[#This Row],[KOSTEN]]","v":100}]
[null,"BH67655","Artikel 8","Per stuk",19,3,{"$f":"Voorraadlijst3[[#This Row],[HOEV]]*Voorraadlijst3[[#This Row],[KOSTEN]]","v":57}]
[null,"WT98768","Artikel 9","Pakket (5 stuks)",20,14,{"$f":"Voorraadlijst3[[#This Row],[HOEV]]*Voorraadlijst3[[#This Row],[KOSTEN]]","v":280}]
[null,"TS3456","Artikel 10","Per stuk",15,60,{"$f":"Voorraadlijst3[[#This Row],[HOEV]]*Voorraadlijst3[[#This Row],[KOSTEN]]","v":900}]
[null,"WDG123","Artikel 11","Per stuk",20,8,{"$f":"Voorraadlijst3[[#This Row],[HOEV]]*Voorraadlijst3[[#This Row],[KOSTEN]]","v":160}]

{"sheet":"VERBRUIK 2021","index":2,"n_rows":8,"n_cols":8,"rows_kept":8,"cut":false,"hidden":false,"merged":[]}
[null,null,"VERBRUIK"]
[null,null,"TOTALE VOORRAADWAARDE:","VOORRAADARTIKELEN:"]
[null,null,{"$f":"SUM(Voorraadlijst34[VOORRAADWAARDE])","v":60},{"$f":"COUNTA(Voorraadlijst34[BESCHRIJVING])","v":4}]
["KLANT",null,"ARTIKEL","BESCHRIJVING","EENHEID","HOEV","KOSTEN","VOORRAADWAARDE"]
[null,null,"EIK OP BOOL",{"$f":"IFERROR(INDEX(Voorraadlijst3[],MATCH(Voorraadlijst34[[#This Row],[ARTIKEL]],Voorraadlijst3[ARTIKEL],0),2),\"\")","v":"EIKEN PLANKEN"},{"$f":"IFERROR(INDEX(Voorraadlijst3[],MATCH(Voorraadlijst34[[#This Row],[ARTIKEL]],Voorraadlijst3[ARTIKEL],0),3),\"\")","v":"Per stuk"},2,{"$f":"IFERROR(INDEX(Voorraadlijst3[],MATCH(Voorraadlijst34[[#This Row],[ARTIKEL]],Voorraadlijst3[ARTIKEL],0),5),\"\")","v":30},{"$f":"IFERROR(Voorraadlijst34[[#This Row],[HOEV]]*Voorraadlijst34[[#This Row],[KOSTEN]],\"\")","v":60}]
[null,null,null,{"$f":"IFERROR(INDEX(Voorraadlijst3[],MATCH(Voorraadlijst34[[#This Row],[ARTIKEL]],Voorraadlijst3[ARTIKEL],0),2),\"\")","v":""},{"$f":"IFERROR(INDEX(Voorraadlijst3[],MATCH(Voorraadlijst34[[#This Row],[ARTIKEL]],Voorraadlijst3[ARTIKEL],0),3),\"\")","v":""},null,{"$f":"IFERROR(INDEX(Voorraadlijst3[],MATCH(Voorraadlijst34[[#This Row],[ARTIKEL]],Voorraadlijst3[ARTIKEL],0),5),\"\")","v":""},{"$f":"IFERROR(Voorraadlijst34[[#This Row],[HOEV]]*Voorraadlijst34[[#This Row],[KOSTEN]],\"\")","v":""}]
[null,null,null,{"$f":"IFERROR(INDEX(Voorraadlijst3[],MATCH(Voorraadlijst34[[#This Row],[ARTIKEL]],Voorraadlijst3[ARTIKEL],0),2),\"\")","v":""},{"$f":"IFERROR(INDEX(Voorraadlijst3[],MATCH(Voorraadlijst34[[#This Row],[ARTIKEL]],Voorraadlijst3[ARTIKEL],0),3),\"\")","v":""},null,{"$f":"IFERROR(INDEX(Voorraadlijst3[],MATCH(Voorraadlijst34[[#This Row],[ARTIKEL]],Voorraadlijst3[ARTIKEL],0),5),\"\")","v":""},{"$f":"IFERROR(Voorraadlijst34[[#This Row],[HOEV]]*Voorraadlijst34[[#This Row],[KOSTEN]],\"\")","v":""}]
[null,null,null,{"$f":"IFERROR(INDEX(Voorraadlijst3[],MATCH(Voorraadlijst34[[#This Row],[ARTIKEL]],Voorraadlijst3[ARTIKEL],0),2),\"\")","v":""},{"$f":"IFERROR(INDEX(Voorraadlijst3[],MATCH(Voorraadlijst34[[#This Row],[ARTIKEL]],Voorraadlijst3[ARTIKEL],0),3),\"\")","v":""},null,{"$f":"IFERROR(INDEX(Voorraadlijst3[],MATCH(Voorraadlijst34[[#This Row],[ARTIKEL]],Voorraadlijst3[ARTIKEL],0),5),\"\")","v":""},{"$f":"IFERROR(Voorraadlijst34[[#This Row],[HOEV]]*Voorraadlijst34[[#This Row],[KOSTEN]],\"\")","v":""}]